fUSD/lending_fUSD_20240329
["ID","MTS","AMOUNT","RATE_DAILY","PERIOD"]
[320941525,1711719044227,-8109.1216558,0.00065434,120]
[320941526,1711719044237,-8109.1216558,0.00065436,120]
[320941527,1711719044246,-156.81,0.00065439,120]
[320941528,1711719044256,-8109.1216558,0.00065445,120]
[320941529,1711719044265,-8109.1216558,0.00065452,120]
[320941530,1711719044274,-8109.1216558,0.00065452,120]
[320941531,1711719044284,-8109.1216558,0.00065455,120]
[320941532,1711719044293,-8109.1216558,0.00065461,120]
[320941533,1711719044303,-186.92222222,0.00065479,120]
[320941534,1711719044312,-150.0,0.000655,120]
[320941535,1711719044325,-300.0,0.000655,43]
[320941536,1711719044334,-500.0,0.00065556,120]
[320941537,1711719044344,-500.0,0.00065556,120]
[320941538,1711719044354,-416.52080791,0.00065556,120]
[320941539,1711719044363,-499.46351527,0.00065556,120]
[320941540,1711719044372,-500.0,0.00065556,120]
[320941541,1711719044382,-500.0,0.00065556,120]
[320941542,1711719044391,-500.0,0.00065556,120]
[320941543,1711719044400,-500.0,0.00065556,120]
[320941544,1711719044409,-500.0,0.00065556,120]
[320941545,1711719044419,-500.0,0.00065556,120]
[320941546,1711719044428,-500.0,0.00065556,120]
[320941547,1711719044438,-500.0,0.00065556,120]
[320941548,1711719044448,-500.0,0.00065556,120]
[320941549,1711719044457,-500.0,0.00065556,120]
[320941550,1711719044466,-500.0,0.00065556,120]
[320941551,1711719044477,-500.0,0.00065556,120]
[320941552,1711719044486,-500.0,0.00065556,120]
[320941553,1711719044498,-500.0,0.00065556,120]
[320941554,1711719044508,-500.0,0.00065556,120]
[320941555,1711719044517,-545.5815847,0.00065556,120]
[320941556,1711719044528,-500.0,0.00065556,120]
[320941557,1711719044537,-500.0,0.00065556,120]
[320941558,1711719044546,-500.0,0.00065556,120]
[320941559,1711719044561,-500.0,0.00065556,120]
[320941560,1711719044572,-500.0,0.00065556,120]
[320941561,1711719044584,-500.0,0.00065556,120]
[320941562,1711719044593,-800.0,0.00065557,120]
[320941563,1711719044602,-531.53,0.00065753,120]
[320941564,1711719044611,-1000.0,0.00065753,30]
[320941565,1711719044621,-12000.0,0.00065801,8]
[320941566,1711719044631,-531.53,0.0006583,120]
[320941567,1711719044641,-500.0,0.0006583,120]
[320941568,1711719044650,-295.69586249,0.0006583,120]
[320941569,1711719044660,-164.7886302,0.00065922,120]
[320941570,1711719044669,-297.29902466,0.00065932,120]
[320941571,1711719044679,-995.06,0.0006597,120]
[320941572,1711719044688,-150.0,0.00066,120]
[320941573,1711719044697,-186.92222222,0.00066082,120]
[320941574,1711719044707,-531.53,0.00066104,120]
[320941575,1711719044716,-500.0,0.00066104,120]
[320941576,1711719044725,-150.0,0.00066119,60]
[320941577,1711719044735,-150.0,0.00066128,60]
[320941578,1711719044744,-150.0,0.00066134,60]
[320941579,1711719044754,-150.0,0.00066134,60]
[320941580,1711719044763,-150.0,0.00066168,60]
[320941581,1711719044772,-150.0,0.00066192,60]
[320941582,1711719044781,-300.0,0.00066192,60]
[320941583,1711719044790,-150.0,0.00066195,60]
[320941584,1711719044800,-150.0,0.00066202,60]
[320941585,1711719044809,-150.0,0.00066211,60]
[320941586,1711719044819,-150.0,0.00066211,60]
[320941587,1711719044829,-150.0,0.00066224,60]
[320941588,1711719044838,-150.0,0.00066227,60]
[320941589,1711719044847,-150.0,0.00066231,60]
[320941590,1711719044857,-150.0,0.00066232,60]
[320941591,1711719044867,-150.0,0.00066238,60]
[320941592,1711719044876,-1500.0,0.00066242,60]
[320941593,1711719044885,-150.14857941,0.00066243,47]
[320941594,1711719044895,-150.0,0.00066244,60]
[320941595,1711719044905,-150.0,0.00066245,60]
[320941596,1711719044914,-150.0,0.00066249,60]
[320941597,1711719044923,-150.0,0.0006625,60]
[320941598,1711719044933,-150.0,0.00066253,60]
[320941599,1711719044942,-502.4817,0.00066255,2]
[320941600,1711719044952,-150.0,0.00066258,60]
[320941601,1711719044961,-300.0,0.00066259,60]
[320941602,1711719044970,-150.0,0.0006626,60]
[320941603,1711719044979,-150.0,0.00066262,60]
[320941604,1711719044989,-150.0,0.00066263,60]
[320941605,1711719045001,-150.0,0.00066263,60]
[320941606,1711719045010,-150.0,0.00066264,60]
[320941607,1711719045019,-1510.7657,0.00066266,14]
[320941608,1711719045028,-150.0,0.00066267,60]
[320941609,1711719045038,-300.0,0.00066268,60]
[320941610,1711719045046,-151.0,0.00066274,120]
[320941611,1711719045055,-150.0,0.00066278,60]
[320941612,1711719045064,-151.87546282,0.00066278,106]
[320941613,1711719045105,-150.0,0.00066285,60]
[320941614,1711719045114,-150.0,0.00066299,60]
[320941615,1711719045124,-150.0,0.00066303,60]
[320941616,1711719045133,-150.0,0.0006631,60]
[320941617,1711719045142,-150.0,0.00066315,60]
[320941618,1711719045152,-150.0,0.00066319,60]
[320941619,1711719045161,-150.14857941,0.00066329,47]
[320941620,1711719045170,-150.0,0.00066332,60]
[320941621,1711719045180,-1500.0,0.00066334,60]
[320941622,1711719045189,-150.0,0.00066343,60]
[320941623,1711719045198,-1463.10067746,0.00066348,2]
[320941624,1711719045207,-152.10412595,0.00066358,60]
[320941625,1711719045217,-243.32970923,0.00066358,60]
[320941626,1711719045226,-150.0,0.00066361,60]
[320941627,1711719045236,-150.0,0.00066364,60]
[320941628,1711719045245,-300.0,0.00066373,60]
[320941629,1711719045254,-531.53,0.00066378,120]
[320941630,1711719045263,-150.0,0.00066378,60]
[320941631,1711719045273,-500.0,0.00066378,120]
[320941632,1711719045283,-150.0,0.00066384,60]
[320941633,1711719045292,-150.0,0.00066387,60]
[320941634,1711719045301,-150.0,0.00066388,60]
[320941635,1711719045310,-150.0,0.00066388,60]
[320941636,1711719045320,-151.8754628,0.00066389,106]
[320941637,1711719045329,-1500.0,0.00066392,60]
[320941638,1711719045338,-150.0,0.00066396,60]
[320941639,1711719045348,-150.0,0.00066397,60]
[320941640,1711719045358,-150.0,0.00066398,60]
[320941641,1711719045367,-77059.03781131,0.000664,120]
[320941642,1711719045376,-150.0,0.00066405,60]
[320941643,1711719045385,-150.0,0.00066408,60]
[320941644,1711719045395,-150.14857941,0.00066414,47]
[320941645,1711719045404,-150.0,0.00066418,60]
[320941646,1711719045415,-150.0,0.00066422,60]
[320941647,1711719045424,-150.0,0.00066423,60]
[320941648,1711719045433,-300.0,0.00066436,60]
[320941649,1711719045442,-302.30794069,0.00066441,60]
[320941650,1711719045451,-150.0,0.00066441,60]
[320941651,1711719045461,-150.0,0.00066444,60]
[320941652,1711719045470,-150.0,0.00066447,60]
[320941653,1711719045479,-150.0,0.00066454,60]
[320941654,1711719045488,-150.0,0.00066467,60]
[320941655,1711719045498,-150.0,0.00066473,60]
[320941656,1711719045507,-150.0,0.00066475,60]
[320941657,1711719045516,-150.0,0.00066476,60]
[320941658,1711719045525,-150.0,0.00066481,60]
[320941659,1711719045534,-150.0,0.00066486,60]
[320941660,1711719045544,-150.0,0.00066492,60]
[320941661,1711719045553,-245000.0,0.00066493,2]
[320941662,1711719045562,-39827.2204,0.00066493,2]
[320941663,1711719045572,-100000.0,0.00066493,2]
[320941664,1711719045582,-150.0,0.00066498,60]
[320941665,1711719045591,-698.31841545,0.00066499,120]
[320941666,1711719045600,-1000.0,0.00066499,120]
[320941667,1711719045608,-186.61734676,0.000665,47]
[320941668,1711719045617,-1317.160699,0.000665,120]
[320941669,1711719045626,-151.8754628,0.000665,107]
[320941670,1711719045635,-150.0,0.000665,120]
[320941671,1711719045645,-150.14857941,0.000665,47]
[320941672,1711719045654,-479.0,0.000665,50]
[320941673,1711719045664,-300.0,0.000665,44]
[320941674,1711719045673,-373.337638,0.000665,120]
[320941675,1711719045682,-150.0,0.000665,16]
[320941676,1711719045692,-161.68213337,0.000665,120]
[320941677,1711719045704,-161.68213337,0.000665,120]
[320941678,1711719045713,-161.68213337,0.000665,120]
[320941679,1711719045722,-161.68213337,0.000665,120]
[320941680,1711719045732,-161.68213337,0.000665,120]
[320941681,1711719045742,-161.68213337,0.000665,120]
[320941682,1711719045751,-161.68213337,0.000665,120]
[320941683,1711719045761,-161.68213337,0.000665,120]
[320941684,1711719045771,-161.68213337,0.000665,120]
[320941685,1711719045780,-161.68213337,0.000665,120]
[320941686,1711719045790,-162.18,0.000665,120]
[320941687,1711719045799,-159.10031183,0.000665,120]
[320941688,1711719045809,-159.10031183,0.000665,120]
[320941689,1711719045819,-159.10031183,0.000665,120]
[320941690,1711719045828,-159.10031183,0.000665,120]
[320941691,1711719045837,-159.10031183,0.000665,120]
[320941692,1711719045846,-159.10031183,0.000665,120]
[320941693,1711719045856,-159.6,0.000665,120]
[320941694,1711719045866,-150.97853191,0.000665,120]
[320941695,1711719045876,-150.97853191,0.000665,120]
[320941696,1711719045886,-151.47,0.000665,120]
[320941697,1711719045895,-158.10315774,0.000665,120]
[320941698,1711719045905,-158.10315774,0.000665,120]
[320941699,1711719045914,-158.10315774,0.000665,120]
[320941700,1711719045924,-158.10315774,0.000665,120]
[320941701,1711719045934,-158.6,0.000665,120]
[320941702,1711719045943,-388.36321734,0.000665,30]
[320941703,1711719045952,-1587.09831485,0.000665,2]
[320941704,1711719045962,-150.0,0.00066508,60]
[320941705,1711719045971,-150.0,0.0006651,60]
[320941706,1711719045980,-150.0,0.00066515,60]
[320941707,1711719045990,-150.0,0.00066519,60]
[320941709,1711719046002,-150.0,0.00066519,60]
[320941710,1711719046011,-150.0,0.00066519,60]
[320941711,1711719046020,-150.0,0.00066525,60]
[320941712,1711719046030,-150.0,0.00066528,60]
[320941713,1711719046039,-150.0,0.0006653,60]
[320941714,1711719046048,-150.0,0.00066552,60]
[320941715,1711719046058,-150.0,0.00066556,60]
[320941716,1711719046067,-250.0,0.0006657,90]
[320941717,1711719046080,-464.73441725,0.0006657,90]
[320941718,1711719046089,-150.0,0.00066575,120]
[320941719,1711719046098,-150.0,0.00066576,60]
[320941720,1711719046108,-150.0,0.00066577,60]
[320941722,1711719046117,-150.0,0.00066579,60]
[320941723,1711719046126,-3846.71319902,0.00066598,30]
[320941724,1711719046135,-3045.64301195,0.00066598,40]
[320941725,1711719046144,-854.93307856,0.00066598,30]
[320941726,1711719046153,-1249.19045626,0.00066598,120]
[320941727,1711719046161,-1757.21056864,0.00066598,7]
[320941728,1711719046171,-155.0,0.00066598,7]
[320941729,1711719046179,-155.0,0.00066598,5]
[320941730,1711719046188,-155.0,0.00066598,7]
[320941731,1711719046197,-155.0,0.00066598,7]
[320941732,1711719046206,-259.73532178,0.00066598,7]
[320941733,1711719046214,-2342.08393912,0.00066598,7]
[320941734,1711719046223,-780.88336166,0.00066598,7]
[320941735,1711719046232,-6459.87150068,0.00066598,7]
[320941736,1711719046241,-155.0,0.00066598,7]
[320941737,1711719046250,-1218.58188732,0.00066598,7]
[320941738,1711719046259,-232.55765196,0.00066598,7]
[320941740,1711719046269,-150.0,0.00066598,60]
[320941742,1711719046278,-150.0,0.00066599,30]
[320941744,1711719046287,-150.0,0.00066599,60]
[320941746,1711719046296,-1890.16563071,0.00066599,120]
[320941748,1711719046305,-1065.288,0.00066599,120]
[320941749,1711719046314,-150.0,0.00066599,120]
[320941750,1711719046324,-1571.8104668,0.000666,31]
[320941751,1711719046333,-571151.58453659,0.000666,36]
[320941752,1711719046342,-2618.83953372,0.000666,120]
[320941753,1711719046351,-13227103.10376154,0.000666,60]
[320941754,1711719046417,-3293258.50056506,0.000666,60]
[320941755,1711719046428,-1838986.71180789,0.000666,60]
[320941756,1711719046439,-18699.37661726,0.000666,60]
[320941757,1711719046450,-823.70559019,0.000666,60]
[320941758,1711719046461,-1109.80874038,0.000666,60]
[320941759,1711719046529,-297.82154964,0.00051952,120]
[320941760,1711719046541,-202.17845036,0.00051952,120]
[320941761,1711719046549,-500.0,0.00052226,120]
[320941762,1711719046558,-351.38654964,0.000525,120]
[320941763,1711719046571,-148.61345036,0.000525,120]
[320941764,1711719046581,-151.37654964,0.00052774,120]
[320941765,1711719046600,-348.62345036,0.00052774,120]
[320941766,1711719046609,-1000.0,0.00053048,120]
[320941767,1711719046619,-500.0,0.00053048,120]
[320941768,1711719046628,-500.0,0.00053322,120]
[320941769,1711719046637,-1140.60815407,0.0005387,120]
[320941770,1711719046647,-63126.93116807,0.000666,60]
[320941771,1711719046744,-500.0,0.00053596,120]
[320941772,1711719046753,-500.0,0.0005387,120]
[320941773,1711719046762,-500.0,0.00054144,120]
[320941774,1711719046771,-500.0,0.00054418,120]
[320941775,1711719046780,-389.34379815,0.00054692,120]
[320941776,1711719046789,-313.09502462,0.000666,60]
[320941777,1711719046801,-79082.90593832,0.000666,60]
[320941778,1711719046856,-95.64908078,0.000666,60]
[320941779,1711719046868,-6459.87150068,0.000666,60]
[320941780,1711719046948,-1000.0,0.00049861,4]
[320941781,1711719046957,-6650.0516489,0.000666,60]
[320941782,1711719046969,-21291.74009284,0.000666,60]
[320941783,1711719054801,3601.44902715,0.00024,2]
[320941786,1711719593903,-1000.0,0.00028197,2]
[320941787,1711719593926,-1230.60425694,0.00028197,2]
[320941788,1711719593946,-734.0,0.000282,2]
[320941789,1711719725808,623.0,0.000283,2]
[320941800,1711720162102,-150.0,0.00034548,10]
[320941801,1711720162123,-141.31077251,0.00038597,2]
[320941818,1711720231468,-790.0,0.000385,3]
[320941819,1711720231478,-478.85763236,0.00038597,2]
[320941832,1711720231694,-1172.44789513,0.00038597,2]
[320941833,1711720231703,-471.93610445,0.00038698,4]
[320941834,1711720231713,-383.6,0.00040224,2]
[320941835,1711720231722,-1262.57,0.00041754,2]
[320941836,1711720231731,-1000.0,0.00041801,2]
[320941837,1711720231740,-1500.0,0.0004185,2]
[320941838,1711720231750,-1500.0,0.00041899,120]
[320941839,1711720231759,-183.31,0.00041913,15]
[320941840,1711720231768,-1398.63,0.00041953,2]
[320941841,1711720231778,-250.0,0.00041982,112]
[320941842,1711720231787,-644.17906747,0.00042138,4]
[320941843,1711720231796,-499.99,0.00042138,2]
[320941844,1711720231806,-155.0,0.00042139,4]
[320941845,1711720231815,-383.6,0.00042488,2]
[320941846,1711720231824,-168.93,0.00042543,2]
[320941847,1711720231834,-297.29902466,0.00042569,60]
[320941849,1711720231843,-400.0,0.000426,15]
[320941850,1711720231852,-200.0,0.00042665,120]
[320941853,1711720231862,-1498.86,0.00042667,2]
[320941854,1711720231872,-360.49,0.000427,2]
[320941856,1711720231882,-16909.91,0.000427,10]
[320941858,1711720231891,-150.99,0.000427,10]
[320941859,1711720231900,-900.0,0.000427,15]
[320941861,1711720231910,-1400.0,0.000428,15]
[320941863,1711720231919,-4158.78892519,0.0004289,2]
[320941865,1711720231928,-186.61734676,0.000429,17]
[320941867,1711720231938,-14174.37856852,0.000429,2]
[320941868,1711720231947,-151.89652584,0.000429,17]
[320941870,1711720231956,-873.10746674,0.000429,17]
[320941872,1711720231965,-282.55176543,0.000429,2]
[320941874,1711720231974,-1900.0,0.000429,15]
[320941875,1711720231984,-2257.88067086,0.000429,2]
[320941876,1711720231993,-2954.516,0.000429,120]
[320941877,1711720232002,-529.03277163,0.000429,2]
[320941878,1711720232011,-335.18224058,0.000429,2]
[320941879,1711720232020,-303.23412449,0.000429,2]
[320941880,1711720232029,-895.90442205,0.000429,2]
[320941881,1711720232038,-200.0,0.0004297,15]
[320941882,1711720232047,-983.0,0.0004297,15]
[320941883,1711720232057,-150.5,0.0004297,15]
[320941884,1711720232066,-200.0,0.0004298,15]
[320941885,1711720232075,-983.0,0.0004298,15]
[320941886,1711720232084,-150.5,0.0004298,15]
[320941887,1711720232094,-200.0,0.0004299,15]
[320941888,1711720232103,-983.0,0.0004299,15]
[320941889,1711720232112,-150.5,0.0004299,15]
[320941891,1711720232122,-171.08786704,0.0004299,2]
[320941892,1711720232131,-171.08786704,0.0004299,2]
[320941893,1711720232140,-171.08786704,0.0004299,2]
[320941894,1711720232149,-1225.70072,0.00042997,2]
[320941895,1711720232159,-559.62274197,0.00042998,4]
[320941896,1711720232168,-236.21243831,0.00042998,2]
[320941897,1711720232177,-763.1530555,0.00042998,4]
[320941898,1711720232188,-1000.0,0.00042998,4]
[320941899,1711720232197,-888.8187348,0.00042998,4]
[320941900,1711720232207,-3045.64301195,0.00042999,30]
[320941901,1711720232216,-3846.71319902,0.00042999,2]
[320941902,1711720232226,-6577.55,0.00042999,2]
[320941903,1711720232235,-281.20442799,0.00042999,31]
[320941904,1711720232244,-500.0,0.00042999,31]
[320941905,1711720232253,-422.28792937,0.00042999,31]
[320941906,1711720232262,-162.6674921,0.00042999,31]
[320941907,1711720232272,-267.72074623,0.00042999,31]
[320941908,1711720232281,-284.00035375,0.00042999,31]
[320941909,1711720232290,-211.48102942,0.00042999,31]
[320941910,1711720232299,-60260.86494476,0.00043,30]
[320941911,1711720232324,-42164.05550999,0.00043,30]
[320941912,1711720232424,-2469.165,0.00043,30]
[320941913,1711720232459,-503.184,0.00043,30]
[320941919,1711720237479,-1653.40303235,0.00038499,4]
[320941920,1711720237489,-33571.59696765,0.00043,30]
[320941921,1711720237521,-914.92351734,0.00043,30]
[320941922,1711720237533,-837.13388751,0.00043,30]
[320941923,1711720237545,-6958.58680766,0.00043,30]
[320941924,1711720237785,-927.7953354,0.00043,30]
[320941925,1711720237799,-1550.32986742,0.00043,30]
[320941926,1711720237811,-704.85408813,0.00043,30]
[320941927,1711720237827,-389008.65240923,0.00043,30]
[320941928,1711720237860,-2460128.85766491,0.00043,30]
[320941929,1711720237870,-176.04,0.00043,7]
[320941930,1711720237880,-242.9,0.00043,7]
[320941931,1711720237889,-210.06,0.00043,7]
[320941932,1711720237898,-167.03,0.00044186,2]
[320941933,1711720237907,-183.31,0.00044652,15]
[320941934,1711720237916,-383.6,0.00044752,2]
[320941935,1711720237925,-873.10746672,0.00045045,20]
[320941936,1711720237934,-2257.88067085,0.00045359,2]
[320941937,1711720237944,-156.94,0.00045923,2]
[320941938,1711720237953,-167.03,0.00046617,2]
[320941939,1711720237962,-335.18224058,0.00046833,2]
[320941940,1711720237971,-383.6,0.00047016,2]
[320941941,1711720237980,-1000.0,0.00047026,2]
[320941942,1711720237990,-873.10746672,0.00047191,23]
[320941943,1711720237999,-183.31,0.00047392,15]
[320941944,1711720238008,-220000.0,0.0004781,120]
[320941945,1711720238018,-2257.88067085,0.00047817,2]
[320941946,1711720238027,-155.0,0.00048,15]
[320941947,1711720238036,-230.4,0.00048,120]
[320941949,1711720238045,-152.11743383,0.00048143,60]
[320941951,1711720238054,-230.4,0.00048603,120]
[320941953,1711720238063,-151.89652581,0.000488,40]
[320941954,1711720238073,-1028.371699,0.00049,4]
[320941955,1711720238082,-167.03,0.00049047,2]
[320941956,1711720238093,-150.0,0.00049143,60]
[320941957,1711720238102,-230.4,0.00049205,120]
[320941958,1711720238112,-383.6,0.0004928,2]
[320941959,1711720238121,-431.07666201,0.00049315,120]
[320941960,1711720238130,-444.83661882,0.00049315,120]
[320941961,1711720238141,-500.0,0.00049315,120]
[320941962,1711720238150,-500.0,0.00049315,120]
[320941963,1711720238160,-500.0,0.00049315,120]
[320941964,1711720238172,-500.0,0.00049315,120]
[320941965,1711720238181,-500.0,0.00049315,120]
[320941966,1711720238190,-500.0,0.00049315,120]
[320941967,1711720238200,-504.175564,0.00049315,120]
[320941968,1711720238209,-500.0,0.00049315,120]
[320941969,1711720238218,-500.0,0.00049315,120]
[320941970,1711720238228,-500.0,0.00049315,120]
[320941971,1711720238237,-506.60959906,0.00049315,120]
[320941972,1711720238246,-500.0,0.00049315,120]
[320941973,1711720238256,-500.0,0.00049315,120]
[320941974,1711720238265,-500.0,0.00049315,30]
[320941975,1711720238274,-500.0,0.00049315,120]
[320941976,1711720238284,-503.798296,0.00049315,120]
[320941977,1711720238293,-500.0,0.00049315,120]
[320941978,1711720238302,-500.0,0.00049315,120]
[320941979,1711720238312,-503.84699892,0.00049315,120]
[320941980,1711720238320,-508.23094758,0.00049315,120]
[320941981,1711720238330,-500.0,0.00049315,120]
[320941982,1711720238339,-500.0,0.00049315,120]
[320941983,1711720238348,-528.62121613,0.00049315,120]
[320941984,1711720238357,-500.0,0.00049315,120]
[320941985,1711720238368,-472.79695265,0.00049315,120]
[320941986,1711720238379,-500.0,0.00049315,120]
[320941987,1711720238388,-500.0,0.00049315,120]
[320941988,1711720238397,-500.0,0.00049315,120]
[320941989,1711720238407,-500.0,0.00049315,120]
[320941990,1711720238417,-504.61483569,0.00049315,120]
[320941991,1711720238425,-500.0,0.00049315,120]
[320941992,1711720238435,-500.0,0.00049315,120]
[320941993,1711720238445,-500.0,0.00049315,120]
[320941994,1711720238454,-500.0,0.00049315,120]
[320941995,1711720238463,-500.0,0.00049315,120]
[320941996,1711720238471,-500.0,0.00049315,120]
[320941997,1711720238482,-500.0,0.00049315,120]
[320941998,1711720238491,-500.0,0.00049315,120]
[320941999,1711720238500,-500.0,0.00049315,120]
[320942000,1711720238509,-500.0,0.00049315,120]
[320942001,1711720238518,-500.0,0.00049315,120]
[320942002,1711720238527,-500.0,0.00049315,120]
[320942003,1711720238537,-500.0,0.00049315,120]
[320942004,1711720238546,-500.0,0.00049315,120]
[320942005,1711720238555,-500.0,0.00049315,120]
[320942006,1711720238565,-500.0,0.00049315,120]
[320942007,1711720238574,-500.0,0.00049315,120]
[320942008,1711720238583,-500.0,0.00049315,120]
[320942009,1711720238592,-500.0,0.00049315,120]
[320942010,1711720238601,-500.0,0.00049315,120]
[320942011,1711720238610,-500.0,0.00049315,120]
[320942012,1711720238619,-500.0,0.00049315,120]
[320942013,1711720238629,-500.0,0.00049315,120]
[320942014,1711720238638,-500.0,0.00049315,120]
[320942015,1711720238647,-500.0,0.00049315,120]
[320942016,1711720238656,-500.0,0.00049315,120]
[320942017,1711720238666,-501.74845143,0.00049315,120]
[320942018,1711720238675,-500.0,0.00049315,120]
[320942019,1711720238684,-500.0,0.00049315,2]
[320942020,1711720238693,-366.73484683,0.00049315,120]
[320942021,1711720238703,-500.0,0.00049315,120]
[320942022,1711720238712,-500.0,0.00049315,120]
[320942023,1711720238721,-500.0,0.00049315,120]
[320942024,1711720238732,-500.0,0.00049315,120]
[320942025,1711720238741,-500.0,0.00049315,120]
[320942026,1711720238751,-500.0,0.00049315,120]
[320942027,1711720238760,-500.0,0.00049315,120]
[320942028,1711720238770,-500.0,0.00049315,120]
[320942029,1711720238779,-1000.0,0.00049315,120]
[320942030,1711720238788,-500.0,0.00049315,30]
[320942031,1711720238797,-500.0,0.00049315,120]
[320942032,1711720238806,-500.0,0.00049315,120]
[320942033,1711720238815,-500.0,0.00049315,120]
[320942034,1711720238825,-500.0,0.00049315,120]
[320942035,1711720238834,-500.0,0.00049315,120]
[320942036,1711720238843,-500.0,0.00049315,120]
[320942037,1711720238853,-503.82759927,0.00049315,120]
[320942038,1711720238863,-500.0,0.00049315,120]
[320942039,1711720238875,-500.0,0.00049315,120]
[320942040,1711720238884,-500.0,0.00049315,120]
[320942041,1711720238894,-500.0,0.00049315,120]
[320942042,1711720238904,-500.0,0.00049315,120]
[320942043,1711720238913,-500.0,0.00049315,120]
[320942044,1711720238921,-500.0,0.00049315,120]
[320942045,1711720238931,-500.0,0.00049315,120]
[320942046,1711720238941,-500.0,0.00049315,120]
[320942047,1711720238950,-500.0,0.00049315,120]
[320942048,1711720238960,-500.0,0.00049315,120]
[320942049,1711720238969,-500.0,0.00049315,120]
[320942050,1711720238978,-500.0,0.00049315,120]
[320942051,1711720238988,-500.0,0.00049315,120]
[320942052,1711720238997,-500.0,0.00049315,120]
[320942053,1711720239008,-500.0,0.00049315,120]
[320942054,1711720239017,-500.0,0.00049315,120]
[320942055,1711720239027,-500.0,0.00049315,120]
[320942056,1711720239037,-500.0,0.00049315,120]
[320942057,1711720239046,-504.23353808,0.00049315,120]
[320942058,1711720239055,-509.12904604,0.00049315,120]
[320942059,1711720239065,-500.0,0.00049315,120]
[320942060,1711720239075,-500.0,0.00049315,120]
[320942061,1711720239085,-500.0,0.00049315,120]
[320942062,1711720239095,-500.0,0.00049315,120]
[320942063,1711720239105,-500.0,0.00049315,120]
[320942064,1711720239115,-500.0,0.00049315,120]
[320942065,1711720239125,-501.59037577,0.00049315,120]
[320942066,1711720239135,-500.0,0.00049315,120]
[320942067,1711720239145,-503.003162,0.00049315,120]
[320942068,1711720239154,-500.0,0.00049315,120]
[320942069,1711720239164,-500.0,0.00049315,120]
[320942071,1711720239173,-500.0,0.00049315,120]
[320942073,1711720239183,-500.0,0.00049315,120]
[320942075,1711720239193,-503.09121301,0.00049315,120]
[320942076,1711720239202,-500.0,0.00049315,120]
[320942077,1711720239211,-500.0,0.00049315,120]
[320942078,1711720239221,-2000.0,0.00049315,30]
[320942079,1711720239231,-502.83989962,0.00049315,120]
[320942080,1711720239240,-500.0,0.00049315,120]
[320942081,1711720239250,-150.0,0.00049315,120]
[320942082,1711720239260,-500.0,0.00049315,120]
[320942083,1711720239269,-500.0,0.00049315,120]
[320942084,1711720239279,-867.0,0.00049315,120]
[320942085,1711720239288,-504.13272568,0.00049315,120]
[320942086,1711720239297,-718.60420916,0.00049315,4]
[320942087,1711720239306,-500.0,0.00049315,120]
[320942088,1711720239315,-500.0,0.00049315,120]
[320942089,1711720239324,-500.0,0.00049315,120]
[320942090,1711720239335,-516.77620142,0.00049315,120]
[320942091,1711720239344,-500.0,0.00049315,120]
[320942092,1711720239354,-500.0,0.00049315,120]
[320942093,1711720239364,-500.0,0.00049315,120]
[320942094,1711720239378,-500.0,0.00049315,120]
[320942095,1711720239387,-500.0,0.00049315,120]